bitfinex-derivatives/quotes_ETHF0:USTF0_20250727
["timestamp","ask_amount","ask_price","bid_price","bid_amount"]
[1753603778625,1.7179,3771.7,3771.6,28.28071665]
[1753603779329,2.24797,3771.7,3771.6,28.28071665]
[1753603779728,0.3121,3771.7,3771.6,25.89639]
[1753603780531,0.7399,3771.7,3771.6,25.89639]
[1753603781030,0.3121,3771.7,3771.6,25.89639]
[1753603782126,1.7179,3771.7,3771.6,25.89639]
[1753603784637,1.2411,3771.7,3771.6,25.89639]
[1753603784837,0.3121,3771.7,3771.6,25.89639]
[1753603785037,0.5121,3771.9,3771.8,1.52956]
[1753603785238,0.5121,3771.9,3771.8,25.06748466]
[1753603785438,1.9179,3771.9,3771.8,25.06748466]
[1753603786539,2.44795,3771.9,3771.8,24.91948466]
[1753603787147,1.9179,3771.9,3771.8,24.91948466]
[1753603787544,2.44795,3771.9,3771.8,24.91948466]
[1753603787845,1.9179,3771.9,3771.8,25.06748466]
[1753603788446,0.8217,3771.9,3771.8,25.06748466]
[1753603788948,1.2495,3771.9,3771.8,22.68456]
[1753603789147,0.8217,3771.9,3771.8,22.68456]
[1753603790351,0.2,3771.9,3771.8,22.68456]
[1753603791053,0.5121,3771.9,3771.8,22.68456]
[1753603792654,0.8133,3772.3,3772.2,0.695]
[1753603792852,0.8133,3772.3,3772.2,26.4952]
[1753603794753,1.4358,3772.3,3772.2,26.4952]
[1753603795259,2.24789,3772.3,3772.2,21.6661]
[1753603795455,2.24789,3772.3,3772.2,22.1961]
[1753603796456,1.7179,3772.3,3772.2,25.8559]
[1753603796656,2.24789,3772.3,3772.2,25.8559]
[1753603797050,1.7179,3772.3,3772.2,25.8559]
[1753603797357,1.7179,3772.3,3772.2,26.496]
[1753603797560,1.4358,3772.3,3772.2,26.496]
[1753603797858,3.5012,3773.1,3772.4,0.7069]
[1753603798154,2.25378,3773.1,3773.0,0.4926]
[1753603798354,2.25378,3773.1,3773.0,21.6416]
[1753603799756,1.4404,3773.1,3773.0,23.26199]
[1753603800959,1.2524,3773.1,3773.0,23.26199]
[1753603801257,0.2934,3773.1,3773.0,23.26199]
[1753603801561,1.147,3773.4,3773.3,2.11295]
[1753603801753,1.147,3773.4,3773.3,23.26095]
[1753603802062,2.25374,3773.4,3773.3,21.6386]
[1753603802356,2.25374,3773.4,3773.3,21.445]
[1753603802659,2.25374,3773.4,3773.3,21.146]
[1753603803054,3.4078,3773.9,3773.2,3.2078]
[1753603803055,2.25375,3773.3,3773.2,3.2078]
[1753603803260,2.25375,3773.3,3773.2,24.3538]
[1753603805456,2.25375,3773.3,3773.2,24.8464]
[1753603805960,2.25375,3773.3,3773.2,25.5829]
[1753603806160,2.25375,3773.3,3773.2,25.9369]
[1753603807961,1.97025,3773.3,3773.2,25.9369]
[1753603810061,2.25375,3773.3,3773.2,25.9369]
[1753603810561,1.97025,3773.3,3773.2,25.9369]
[1753603811060,2.25375,3773.3,3773.2,25.9369]
[1753603812560,2.25375,3773.3,3773.2,25.5829]
[1753603813566,2.25375,3773.3,3773.2,24.3478]
[1753603814065,2.25375,3773.3,3773.2,24.6468]
[1753603815366,2.25375,3773.3,3773.2,3.5068]
[1753603815667,2.25375,3773.3,3773.2,24.6448]
[1753603815866,2.25375,3773.3,3773.2,24.8384]
[1753603816067,2.25375,3773.3,3773.2,25.2659]
[1753603818159,2.25867236,3773.3,3773.2,25.2659]
[1753603818364,2.25867236,3773.3,3773.2,4.1279]
[1753603818566,2.25867236,3773.3,3773.2,25.2659]
[1753603819067,2.25867236,3773.3,3773.2,25.2649]
[1753603819270,2.25867236,3773.3,3773.2,4.1279]
[1753603819463,2.25867236,3773.3,3773.2,25.2649]
[1753603820161,2.25867236,3773.3,3773.2,25.5739]
[1753603820571,2.25867236,3773.3,3773.2,25.7236]
[1753603823470,1.97517236,3773.3,3773.2,25.9279]
[1753603823968,2.25867236,3773.3,3773.2,25.9279]
[1753603825074,0.29832236,3773.3,3773.2,25.9279]
[1753603825275,0.00492236,3773.3,3773.2,26.45776]
[1753603826873,0.00492236,3773.3,3773.2,26.45476]
[1753603830577,0.00492236,3773.3,3773.2,28.83743687]
[1753603830776,0.31642236,3773.3,3773.2,28.83743687]
[1753603831381,0.00492236,3773.3,3773.2,26.45476]
[1753603831581,0.5115,3773.9,3773.8,2.09938]
[1753603831776,0.5115,3773.9,3773.8,23.23138]
[1753603831972,0.2,3773.9,3773.8,23.23138]
[1753603833277,0.2,3773.9,3773.8,2.09938]
[1753603833483,1.6673,3773.9,3773.8,1.5696]
[1753603833685,2.48086,3773.9,3773.8,0.4991]
[1753603834083,2.48086,3773.9,3773.8,21.6301]
[1753603834475,1.23298,3773.8,3773.7,40.54822096]
[1753603834674,1.23298,3773.8,3770.5,36.02227347]
[1753603834675,2.28091,3773.6,3773.5,2.38322096]
[1753603834881,2.28091,3773.6,3773.5,21.131]
[1753603835384,2.28091,3773.6,3773.5,23.51195107]
[1753603835784,2.28091,3773.6,3773.5,23.50995107]
[1753603836886,2.28091,3773.6,3773.5,21.129]
[1753603838878,1.23305,3773.3,3773.2,2.57655107]
[1753603839082,2.28095,3773.3,3773.2,24.43675107]
[1753603839391,2.28095,3773.3,3773.2,24.74335107]
[1753603840687,2.28095,3773.3,3773.2,25.07955107]
[1753603841386,0.3115,3773.6,3773.2,25.07955107]
[1753603841590,1.1631,3773.9,3773.8,0.6959]
[1753603841781,1.69287,3773.9,3773.8,22.6976]
[1753603841978,1.88557,3773.9,3773.8,22.6976]
[1753603842187,2.19707,3773.9,3773.8,22.6976]
[1753603842389,1.6673,3773.9,3773.8,22.6976]
[1753603842584,2.19707,3773.9,3773.8,22.6976]
[1753603842887,0.9295,3773.7,3773.6,0.4991]
[1753603843087,1.233,3773.7,3773.6,0.4991]
[1753603843390,2.28094,3773.4,3773.3,2.88005107]
[1753603843588,2.28094,3773.4,3773.3,0.3035]
[1753603843990,2.28094,3773.4,3773.3,21.4305]
[1753603845691,2.28094,3773.4,3773.3,21.6261]
[1753603846190,2.28094,3773.4,3773.3,0.4991]
[1753603846385,2.28094,3773.4,3773.3,21.6261]
[1753603847193,2.28094,3773.4,3773.3,22.0538]
[1753603847789,2.28094,3773.4,3773.3,0.4991]
[1753603847993,2.28094,3773.4,3773.3,21.6261]
[1753603848694,2.28094,3773.4,3773.3,0.4991]
[1753603848890,2.28094,3773.4,3773.3,21.6261]
[1753603849395,2.28094,3773.4,3773.3,22.0538]
[1753603852693,2.28094,3773.4,3773.3,22.3604]
[1753603853193,2.28094,3773.4,3773.3,22.3594]
[1753603853697,2.28096,3773.2,3773.1,3.30775107]
[1753603853891,2.28096,3773.2,3773.1,24.74035107]
[1753603854092,2.28096,3773.2,3773.1,22.6956]
[1753603855296,1.7511,3773.2,3773.1,23.22548]
[1753603855496,2.28096,3773.2,3773.1,22.6956]
[1753603855997,1.7511,3773.2,3773.1,23.22548]
[1753603856391,2.28096,3773.2,3773.1,22.6956]
[1753603857288,2.28096,3773.2,3773.1,1.5696]
[1753603857492,2.28096,3773.2,3773.1,22.6956]
[1753603857898,2.28096,3773.2,3773.1,1.5696]
[1753603858198,2.28096,3773.2,3773.1,22.6956]
[1753603860103,2.28096,3773.2,3773.1,22.5531]
[1753603860396,1.7511,3773.2,3773.1,0.52988]
[1753603860595,2.27898,3773.1,3773.0,3.91105107]
[1753603860794,2.27898,3773.1,3773.0,22.6551]
[1753603862999,1.99618,3773.1,3773.0,22.6551]
[1753603863900,2.27898,3773.1,3773.0,22.3185]
[1753603864499,2.27898,3773.1,3773.0,22.4611]
[1753603867605,2.27898,3773.1,3773.0,22.6551]
[1753603868606,2.27898,3773.1,3773.0,1.5301]
[1753603868800,2.27898,3773.1,3773.0,22.6551]
[1753603871007,2.27898,3773.1,3773.0,0.4836]
[1753603871209,2.27898,3773.1,3773.0,21.6086]
[1753603871410,2.27898,3773.1,3773.0,22.0321]
[1753603873210,2.27898,3773.1,3773.0,22.4611]
[1753603873398,2.27898,3773.1,3773.0,22.6551]
[1753603874507,2.27898,3773.1,3773.0,22.5125]
[1753603879512,2.27898,3773.1,3773.0,22.6551]
[1753603879914,1.99618,3773.1,3773.0,22.6551]
[1753603880512,5.20398,3773.1,3773.0,22.6551]
[1753603882317,5.20398,3773.1,3773.0,1.5301]
[1753603882510,5.20398,3773.1,3773.0,22.6531]
[1753603882909,5.20398,3773.1,3773.0,1.5301]
[1753603883112,5.20398,3773.1,3773.0,22.6531]
[1753603886414,5.48678,3773.1,3773.0,22.6531]
[1753603886618,5.48678,3773.1,3773.0,22.5105]
[1753603886821,5.48678,3773.1,3773.0,0.2948]
[1753603887021,5.48678,3773.1,3773.0,21.4168]
[1753603887622,2.25362,3772.8,3772.7,0.9218]
[1753603887824,2.25365,3772.6,3772.5,2.68745107]
[1753603888023,2.25365,3772.6,3772.5,24.00125107]
[1753603888227,2.25365,3772.6,3772.5,0.9259]
[1753603888425,2.25365,3772.6,3772.5,21.6203]
[1753603888625,2.25365,3772.6,3772.5,0.4983]
[1753603888826,2.25365,3772.6,3772.5,21.6193]
[1753603890023,2.25365,3772.6,3772.5,0.4983]
[1753603890328,2.25365,3772.6,3772.5,21.6203]
[1753603892028,2.25365,3772.6,3772.5,22.0479]
[1753603893930,0.52998,3772.4,3772.3,0.6194]
[1753603894123,2.25368,3772.4,3772.3,21.6193]
[1753603895034,2.25368,3772.4,3772.3,1.212]
[1753603895235,2.25368,3772.4,3772.3,22.476]
[1753603895537,2.25368,3772.4,3772.3,22.6738]
[1753603898432,5.46148,3772.4,3772.3,22.6738]
[1753603898938,5.46148,3772.4,3772.3,21.6203]
[1753603899131,5.46148,3772.4,3772.3,21.4285]
[1753603899833,5.46148,3772.4,3772.3,21.6203]
[1753603900042,5.46148,3772.4,3772.3,22.0479]
[1753603900338,0.3046,3773.6,3772.3,27.1042]
[1753603900634,1.94892,3773.5,3773.4,1.5518]
[1753603900834,1.94892,3773.5,3773.4,22.8348]
[1753603901137,2.25352,3773.5,3773.4,22.8348]
[1753603901336,1.94892,3773.5,3773.4,22.8348]
[1753603903339,1.94892,3773.5,3773.4,1.5518]
[1753603903537,1.94892,3773.5,3773.4,22.8318]
[1753603908339,2.25352,3773.5,3773.4,22.8318]
[1753603910141,2.25352,3773.5,3773.4,1.5518]
[1753603910344,2.25352,3773.5,3773.4,22.8028]
[1753603912245,1.94892,3773.5,3773.4,22.8028]
[1753603912445,0.82222,3773.5,3773.4,22.8028]
[1753603912945,1.25612,3773.5,3773.4,22.8028]
[1753603914047,1.46112,3773.5,3773.4,22.8028]
[1753603915251,1.94892,3773.5,3773.4,22.8028]
[1753603915440,2.25352,3773.5,3773.4,22.6608]
[1753603915746,2.25352,3773.5,3773.4,22.8028]
[1753603921545,1.75102,3773.5,3773.4,22.8028]
[1753603922041,2.23552,3773.5,3773.4,22.8028]
[1753603922442,3.2078,3773.7,3772.6,2.38095107]
[1753603922443,0.52993,3772.7,3772.6,3.07305107]
[1753603922652,2.28453,3772.7,3772.6,22.4716]
[1753603923749,2.28453,3772.7,3772.6,22.4826]
[1753603924550,2.28453,3772.7,3772.6,1.5516]
[1753603924750,2.28453,3772.7,3772.6,22.7736]
[1753603926347,2.28453,3772.7,3772.6,1.5516]
[1753603926749,2.28453,3772.7,3772.6,22.7666]
[1753603930360,1.81523,3772.7,3772.6,22.7666]
[1753603930561,1.03053,3772.7,3772.6,22.7666]
[1753603931865,0.5006,3772.7,3772.6,22.7666]
[1753603932165,0.52992,3772.8,3772.7,1.551]
[1753603932364,0.83202,3772.8,3772.7,1.551]
[1753603933365,1.12462,3772.8,3772.7,1.551]
[1753603934063,1.59392,3772.8,3772.7,1.551]
[1753603934862,1.12462,3772.8,3772.7,1.551]
[1753603935065,0.83202,3772.8,3772.7,1.551]
[1753603935457,0.83202,3772.8,3772.6,21.74495]
[1753603935458,0.52991,3772.9,3772.8,2.08092]
[1753603935756,0.5299,3773.0,3772.9,1.551]
[1753603937365,0.5299,3773.0,3772.9,2.0809]
[1753603937560,0.52988,3773.1,3773.0,0.52989]
[1753603937760,0.52988,3773.1,3773.0,23.27689]
[1753603938060,0.83196,3773.2,3773.1,2.08088]
[1753603938468,0.83196,3773.2,3773.1,1.551]
[1753603938661,0.83196,3773.2,3773.1,2.08088]
[1753603939063,1.52248,3773.8,3773.7,0.4975]
[1753603939364,1.52248,3773.8,3773.7,22.1193]
[1753603939671,2.28438,3773.8,3773.7,22.1193]
[1753603940958,1.7546,3773.8,3773.2,0.1421]
[1753603941164,2.28446,3773.3,3773.2,0.7905]
[1753603941455,1.7546,3773.3,3773.0,0.293]
[1753603941762,5.49228,3773.1,3773.0,0.1928]
[1753603942067,1.22051,3772.9,3772.8,0.6166]
[1753603942269,2.28451,3772.9,3772.8,21.8476]
[1753603943176,2.28451,3772.9,3772.8,22.1406]
[1753603943471,2.28451,3772.9,3772.8,22.782]
[1753603946866,2.28451,3772.9,3772.8,1.551]
[1753603947066,2.28451,3772.9,3772.8,0.3874]
[1753603947273,1.22055,3772.6,3772.5,0.293]
[1753603947470,2.28455,3772.6,3772.5,22.5764]
[1753603947674,2.28455,3772.6,3772.5,22.7778]
[1753603949878,1.0262,3772.8,3772.5,22.7778]
[1753603950173,0.52993,3772.7,3772.6,0.7001]
[1753603950478,0.52993,3772.7,3772.6,1.594]
[1753603951774,0.81313,3772.7,3772.6,1.594]
[1753603954381,1.12223,3772.7,3772.6,1.594]
[1753603954580,2.24883,3772.7,3772.6,1.594]
[1753603954877,2.24883,3772.7,3772.6,22.795]
[1753603961688,2.24883,3772.7,3772.6,22.6359]
[1753603964690,2.24883,3772.7,3772.6,22.778]
[1753603967788,2.24883,3772.7,3772.6,1.594]
[1753603968292,2.24883,3772.7,3772.6,22.761]
[1753603968887,2.24883,3772.7,3772.6,22.759]
[1753603969390,2.24883,3772.7,3772.6,1.594]
[1753603969587,2.24883,3772.7,3772.6,22.757]
[1753603971687,0.52998,3772.4,3772.3,2.67445107]
[1753603971887,2.24888,3772.4,3772.3,21.3652]
[1753603972094,2.24888,3772.4,3772.3,21.8235]
[1753603972295,2.24888,3772.4,3772.3,22.5506]
[1753603972494,2.24888,3772.4,3772.3,1.594]
[1753603972693,2.24888,3772.4,3772.3,22.758]
[1753603977594,2.24888,3772.4,3772.3,1.594]
[1753603977893,2.24888,3772.4,3772.3,1.3926]
[1753603978094,2.24888,3772.4,3772.3,22.4025]
[1753603978300,2.24888,3772.4,3772.3,22.5451]
[1753603978500,2.24888,3772.4,3772.3,22.7537]
[1753603979695,2.24888,3772.4,3772.3,1.6017]
[1753603979895,2.24888,3772.4,3772.3,22.7487]
[1753603983409,2.24888,3772.4,3772.3,22.7427]
[1753603987506,3.9553,3773.1,3772.3,23.17326]
[1753603987706,2.27418,3773.1,3773.0,0.8474]
[1753603988006,2.27418,3773.1,3773.0,21.3795]
[1753603988810,1.22512,3772.8,3772.7,0.6388]
[1753603989011,1.7443,3772.8,3772.7,21.8238]
[1753603989212,1.7443,3772.8,3772.7,22.0324]
[1753603990317,1.7443,3772.8,3772.7,22.56233]
[1753603992311,1.7443,3772.8,3772.7,22.0324]
[1753603992813,2.27413,3773.5,3773.4,0.8474]
[1753603993115,2.27413,3773.5,3773.4,22.0904]
[1753603994018,2.27412,3773.5,3773.4,22.0904]
[1753603996819,1.22499,3773.7,3773.6,0.4031]
[1753603997019,1.22499,3773.7,3773.6,22.0766]
[1753603997320,2.27409,3773.7,3773.6,21.4235]
[1753603999020,0.52984,3773.4,3773.3,0.3017]
[1753603999320,5.48194,3773.4,3773.3,21.231]
[1753603999914,0.52988,3773.1,3773.0,0.3017]
[1753604000114,1.2412,3772.6,3772.5,2.57545107]
[1753604000320,2.27425,3772.6,3772.5,2.57545107]
[1753604000513,1.0491,3773.3,3772.6,0.4445]
[1753604000721,2.27415,3773.3,3773.2,0.8476]
[1753604003323,2.27415,3773.3,3773.2,0.1945]
[1753604006529,2.27415,3773.3,3773.2,0.8476]
[1753604009922,0.2939,3773.5,3773.2,0.8476]
[1753604010125,0.82374,3773.4,3773.3,0.8385]
[1753604010424,0.52982,3773.5,3773.4,0.8385]
[1753604010925,0.82372,3773.5,3773.4,0.8385]
[1753604011330,3.33503492,3776.0,3773.8,0.8385]
[1753604011331,2.45027,3773.9,3773.8,0.8385]
[1753604011626,2.45027,3773.9,3773.8,0.1983]
[1753604012227,3.14830033,3773.9,3773.8,0.1983]
[1753604012524,2.45027,3773.9,3773.8,0.1983]
[1753604012926,2.25029,3773.7,3773.6,0.1983]
[1753604013232,5.45809,3773.7,3773.6,0.1983]
[1753604013831,1.22593,3773.4,3773.3,0.8385]
[1753604014130,2.25033,3773.4,3773.3,0.8385]
[1753604015328,0.2939,3773.6,3773.3,0.8385]
[1753604015517,0.7226,3773.6,3773.5,0.3964]
[1753604015719,0.2939,3773.6,3773.5,0.8385]
[1753604015922,0.82371,3773.6,3773.5,0.8385]
[1753604016428,1.25241,3773.6,3773.5,0.8385]
[1753604017234,1.55421,3773.6,3773.5,0.8385]
[1753604017429,1.86471,3773.6,3773.5,0.8385]
[1753604018129,0.82371,3773.6,3773.5,0.8385]
[1753604018927,1.25241,3773.6,3773.5,0.8385]
[1753604019120,1.86471,3773.6,3773.5,0.8385]
[1753604019324,2.05311,3773.6,3773.5,0.8385]
[1753604019526,0.72977,3773.9,3773.8,0.3964]
[1753604019831,2.45027,3773.9,3773.8,0.8385]
[1753604021525,2.45027,3773.9,3773.8,0.4978]
[1753604022227,2.45027,3773.9,3773.8,0.1983]
[1753604023331,2.45027,3773.9,3773.8,0.8385]
[1753604023830,1.9205,3773.9,3773.8,1.36828]
[1753604024433,0.2,3773.9,3773.8,1.36828]
[1753604026630,0.2,3773.9,3773.8,4.57608]
[1753604027235,1.9205,3773.9,3773.8,4.57608]
[1753604027435,1.9205,3773.9,3773.8,1.36828]
[1753604030734,2.45027,3773.9,3773.8,0.1983]
[1753604033337,1.03752,3773.5,3773.4,5.58875107]
[1753604033541,2.25032,3773.5,3773.4,3.2078]
[1753604034339,0.52983,3773.4,3773.3,21.4703]
[1753604034543,2.25033,3773.4,3773.3,21.4703]
[1753604035139,0.52986,3773.2,3773.1,2.87875107]
[1753604035342,1.7205,3773.2,3772.9,2.68045107]
[1753604035541,2.25039,3773.0,3772.9,2.87875107]
[1753604035744,2.25039,3773.0,3772.9,0.1983]
[1753604036249,1.22602,3772.8,3772.7,21.4653]
[1753604036443,2.25042,3772.8,3772.7,21.7648]
[1753604037544,2.25042,3772.8,3772.7,0.1983]
[1753604038039,2.25042,3772.8,3772.7,0.5077]
[1753604041951,2.25042,3772.8,3772.7,0.1983]
[1753604043048,1.24133,3772.7,3772.6,21.259]
[1753604043248,2.26513,3772.7,3772.6,21.259]
[1753604043455,1.69619,3772.3,3772.2,24.9634]
[1753604043652,2.26519,3772.3,3772.2,24.9634]
[1753604044347,2.26519,3772.3,3772.2,0.1892]
[1753604044553,1.98003,3772.0,3771.9,0.4986]
[1753604044756,1.7352,3771.8,3771.6,0.3094]
[1753604045055,2.26527,3771.7,3771.6,22.0953]
[1753604047456,1.7352,3771.7,3771.6,22.0953]
[1753604047954,2.26527,3771.7,3771.6,22.0953]
[1753604048150,1.7352,3771.7,3771.6,22.0953]
[1753604048359,2.26527,3771.7,3771.6,22.0953]
[1753604048857,1.7352,3771.7,3771.6,22.0953]
[1753604049657,1.7352,3771.7,3771.6,22.62539]
[1753604053759,0.74,3772.1,3772.0,0.53003]
[1753604054057,0.2852,3772.1,3772.0,1.36633]
[1753604055055,1.7352,3772.1,3772.0,1.36633]
[1753604056057,1.7352,3772.1,3771.9,3.2078]
[1753604056261,2.26523,3772.1,3772.0,21.242]
[1753604056658,1.7352,3772.1,3772.0,21.77203]
[1753604056961,2.26522,3772.1,3772.0,21.242]
[1753604057160,1.7352,3772.1,3772.0,21.77203]
[1753604057860,0.7114,3771.8,3771.7,0.1892]
[1753604058060,1.7352,3771.8,3771.7,21.95827]
[1753604058958,1.7352,3771.8,3771.7,21.4282]
[1753604059158,1.7352,3771.8,3771.7,21.95827]
[1753604059359,1.7352,3771.8,3771.7,21.4282]
[1753604059963,1.7352,3771.8,3771.7,21.95827]
[1753604060365,1.7352,3771.8,3771.7,0.53007]
[1753604060960,1.7352,3771.8,3771.7,0.71927]
[1753604061364,1.7352,3771.8,3771.7,0.1892]
[1753604061867,2.26526,3771.8,3771.7,0.1892]
[1753604065464,3.2078,3772.0,3771.6,21.236]
[1753604065465,1.24147,3771.7,3771.6,21.236]
[1753604065771,2.26527,3771.7,3771.6,21.236]
[1753604066569,2.26527,3771.7,3771.6,21.4252]
[1753604067078,2.26527,3771.7,3771.6,21.236]
[1753604067685,2.26527,3771.7,3771.6,21.4252]
[1753604068179,2.26527,3771.7,3771.6,21.7166]
[1753604068677,2.26527,3771.7,3771.6,21.4252]
[1753604070181,2.26527,3771.7,3771.6,21.7166]
[1753604070878,2.26527,3771.7,3771.6,21.4252]
[1753604071579,2.26527,3771.7,3771.6,21.7166]
[1753604072980,2.26527,3771.7,3771.6,21.236]
[1753604073483,2.26527,3771.7,3771.6,21.4342]
[1753604073685,2.26527,3771.7,3771.6,21.8676]
[1753604074585,2.26527,3771.7,3771.6,21.4342]
[1753604075079,2.26527,3771.7,3771.6,0.4896]
[1753604076582,2.26527,3771.7,3771.6,0.6316]
[1753604079685,2.26527,3771.7,3771.6,0.8353]
[1753604098808,0.53012,3771.4,3771.3,0.6499]
[1753604099008,2.26082,3771.4,3771.3,21.8229]
[1753604099210,2.26082,3771.4,3771.3,22.0285]
[1753604106510,3.2078,3771.6,3771.3,22.0285]
[1753604106511,0.2992,3773.1,3772.7,0.2088]
[1753604106714,1.73210068,3773.3,3770.7,5.98611492]
[1753604106715,0.3028,3773.3,3773.2,0.96406]
[1753604106910,0.3028,3773.5,3773.3,0.2254]
[1753604107110,0.602,3773.5,3773.4,4.17183]
[1753604107716,0.602,3773.5,3773.4,3.642]
[1753604108016,1.7307,3773.5,3773.4,3.642]
[1753604109215,1.7307,3773.5,3773.4,3.8729652]
[1753604111120,1.7307,3773.5,3773.4,3.642]
[1753604114323,2.26052,3773.5,3773.4,3.642]
[1753604117022,2.26052,3773.5,3773.4,3.4166]
[1753604128223,0.52988,3773.1,3773.0,3.2078]
[1753604128531,2.22898,3773.1,3773.0,24.8645]
[1753604128732,2.22898,3773.1,3773.0,25.0894]
[1753604131630,1.78438,3773.1,3773.0,25.0894]
[1753604134033,2.22898,3773.1,3773.0,25.0894]
[1753604136929,2.22898,3773.1,3773.0,3.4065]
[1753604137236,2.22902,3772.8,3772.7,21.8408]
[1753604137536,2.22902,3772.8,3772.7,21.6157]
[1753604137737,1.21423,3772.7,3772.6,3.2078]
[1753604138035,2.22903,3772.7,3772.6,24.6298]
[1753604138244,2.22903,3772.7,3772.6,5.59131278]
[1753604138537,2.22903,3772.7,3772.6,3.2078]
[1753604139032,1.00886,3772.5,3772.4,2.38351278]
[1753604139237,1.21428,3772.4,3772.3,23.80251278]
[1753604139538,2.22908,3772.4,3772.3,23.80251278]
[1753604140432,2.22908,3772.4,3772.3,24.00121278]
[1753604142134,2.22908,3772.4,3772.3,21.6177]
[1753604142930,1.6991,3772.4,3772.3,24.22631278]
[1753604143136,2.22908,3772.4,3772.3,24.22631278]
[1753604147234,0.5702,3772.4,3772.3,24.75630278]
[1753604147441,0.81618,3772.4,3772.3,22.37279]
[1753604147835,0.2862,3772.4,3772.3,22.37279]
[1753604148142,0.52995,3772.6,3772.5,0.4238]
[1753604148339,0.52992,3772.8,3772.5,22.11166]
[1753604148541,1.25852,3772.8,3772.7,3.6316]
[1753604148735,1.94282,3772.8,3772.7,25.0146]
[1753604148933,2.22902,3772.8,3772.7,25.0146]
[1753604149439,1.6991,3772.8,3772.7,25.54453]
[1753604150142,2.22902,3772.8,3772.7,25.54453]
[1753604151741,1.6991,3772.8,3772.7,25.54453]
[1753604152241,2.22902,3772.8,3772.7,25.31943]
[1753604153142,1.6991,3772.8,3772.7,25.31943]
[1753604154736,2.22902,3772.8,3772.7,25.31943]
[1753604154937,2.22902,3772.8,3772.7,24.7895]
[1753604155339,2.22902,3772.8,3772.7,25.31943]
[1753604155642,1.6991,3772.8,3772.7,25.31943]
[1753604156943,1.6991,3772.8,3772.7,25.54453]
[1753604157346,2.22902,3772.8,3772.7,25.0146]
[1753604157544,2.22902,3772.8,3772.7,24.7895]
[1753604159443,2.22902,3772.8,3772.7,3.2078]
[1753604163141,2.27085,3772.6,3772.5,21.342]
[1753604169049,0.52998,3772.4,3772.3,23.88479188]
[1753604169353,2.27088,3772.4,3772.3,23.88479188]
[1753604171456,1.7409,3772.4,3772.3,23.88479188]
[1753604171755,2.27088,3772.4,3772.3,21.7307]
[1753604171956,2.27088,3772.4,3772.3,24.11393532]
[1753604172656,1.7409,3772.4,3772.3,24.11393532]
[1753604173158,2.27088,3772.4,3772.3,24.11393532]
[1753604174156,2.27088,3772.4,3772.3,24.11375761]
[1753604174556,0.5826,3772.4,3772.3,24.64374761]
[1753604174856,0.83044,3772.7,3772.6,0.4137]
[1753604175058,0.83044,3772.7,3772.6,21.7037]
[1753604175358,0.52993,3772.8,3772.7,0.4137]
[1753604175546,0.81203,3772.8,3772.7,0.4137]
[1753604175754,1.11253,3772.8,3772.7,0.4137]
[1753604176652,1.56723,3772.8,3772.7,0.4137]
[1753604177555,1.76943,3772.8,3772.7,0.4137]
[1753604177756,2.27083,3772.8,3772.7,0.4137]
[1753604180258,2.27082,3772.8,3772.7,0.94363]
[1753604180861,2.27082,3772.8,3772.7,0.4137]
[1753604181758,0.9574,3773.1,3773.0,0.71849]
[1753604181961,0.9574,3773.1,3773.0,22.21859]
[1753604181962,0.3005,3773.1,3773.0,22.21859]
[1753604182261,0.5826,3773.1,3773.0,22.21859]
[1753604183863,1.0373,3773.1,3773.0,22.21859]
[1753604184163,1.2395,3773.1,3773.0,22.21859]
[1753604184563,1.03124,3773.4,3773.0,21.275]
[1753604184763,2.27074,3773.4,3773.3,0.1886]
[1753604185262,2.27074,3773.4,3773.3,0.71845]
[1753604185462,2.27074,3773.4,3773.3,0.1886]
[1753604186460,1.7409,3773.4,3773.3,0.1886]
[1753604187064,2.27074,3773.4,3773.3,0.1886]
[1753604187260,2.27074,3773.4,3773.3,3.3964]
[1753604191263,2.27074,3773.4,3773.3,3.2078]
[1753604191560,2.28865,3773.3,3773.2,21.256]
[1753604191756,2.28869,3773.0,3772.9,3.2078]
[1753604191964,2.28869,3773.0,3772.9,24.4648]
[1753604193070,2.28869,3773.0,3772.9,3.2078]
[1753604195968,2.28875,3772.6,3772.5,24.4568]
[1753604199171,2.28875,3772.6,3772.5,24.6577]
[1753604199974,2.28875,3772.6,3772.5,24.4568]
[1753604200983,2.28875,3772.6,3772.5,24.6577]
[1753604211081,2.28875,3772.6,3772.5,24.4568]
[1753604211285,2.28875,3772.6,3772.5,24.6577]
[1753604212082,2.28875,3772.6,3772.5,3.4087]
[1753604215593,2.2888,3772.2,3772.1,0.4262]
[1753604215787,2.2888,3772.2,3772.1,21.4219]
[1753604216388,2.2888,3772.2,3772.1,21.6472]
[1753604218194,2.2888,3772.2,3772.1,21.4219]
[1753604220488,2.2888,3772.2,3772.1,21.6473]
[1753604220889,2.2888,3772.2,3772.1,21.4219]
[1753604221090,2.2888,3772.2,3772.1,21.6473]
[1753604222597,2.2888,3772.2,3772.1,21.4219]
[1753604224193,2.2888,3772.2,3772.1,21.6473]
[1753604226590,3.2078,3772.7,3772.1,21.6473]
[1753604226591,0.81938,3772.4,3772.1,21.95191]
[1753604226790,1.10658,3772.4,3772.3,0.191]
[1753604226987,0.5766,3772.4,3772.3,21.6374]
[1753604227187,0.2894,3772.4,3772.3,21.6374]
[1753604227401,0.81938,3772.4,3772.3,21.6374]
[1753604229092,0.52997,3772.5,3772.4,0.4164]
[1753604229289,0.2894,3772.6,3772.5,0.4164]